fUSD/lending_fUSD_20250716
["ID","MTS","AMOUNT","RATE_DAILY","PERIOD"]
[372419561,1752637844325,-460.0,0.00021917,2]
[372419563,1752637844335,-460.0,0.00021917,2]
[372419565,1752637844344,-460.0,0.00021917,2]
[372419567,1752637844353,-151.0,0.00021917,2]
[372419569,1752637844363,-160.312001,0.00021917,2]
[372419571,1752637844372,-1101.15,0.00021917,2]
[372419573,1752637844381,-151.0,0.00021917,2]
[372419575,1752637844390,-151.950839,0.00021917,2]
[372419577,1752637844400,-461.65676377,0.00021917,2]
[372419579,1752637844409,-1001.36,0.00021917,2]
[372419581,1752637844419,-194.1977872,0.00021917,2]
[372419583,1752637844428,-460.0,0.00021917,2]
[372419584,1752637844438,-151.0,0.00021917,2]
[372419587,1752637844447,-209.803661,0.00021917,2]
[372419589,1752637844456,-543.84131379,0.00021917,2]
[372419591,1752637844466,-493.03493162,0.00021917,2]
[372419593,1752637844476,-151.0,0.00021917,2]
[372419595,1752637844485,-151.0,0.00021917,2]
[372419596,1752637844495,-151.0,0.00021917,2]
[372419599,1752637844504,-151.0,0.00021917,2]
[372419601,1752637844514,-151.0,0.00021917,2]
[372419602,1752637844523,-460.0,0.00021917,2]
[372419604,1752637844533,-613.04,0.00021917,2]
[372419607,1752637844542,-613.04,0.00021917,2]
[372419609,1752637844552,-460.0,0.00021917,2]
[372419611,1752637844562,-460.0,0.00021917,2]
[372419613,1752637844571,-1769.868997,0.00021917,2]
[372419614,1752637844580,-162.144144,0.00021917,2]
[372419616,1752637844590,-225.016026,0.00021917,2]
[372419618,1752637844599,-158.098854,0.00021917,2]
[372419621,1752637844609,-2926.473938,0.00021917,2]
[372419623,1752637844619,-4003.034026,0.00021917,2]
[372419625,1752637844629,-658.49,0.00021917,2]
[372419627,1752637844638,-470.18,0.00021917,2]
[372419629,1752637844648,-210.074091,0.00021917,2]
[372419631,1752637844657,-210.074091,0.00021917,2]
[372419633,1752637844666,-210.074091,0.00021917,2]
[372419635,1752637844675,-210.074091,0.00021917,2]
[372419637,1752637844686,-151.0,0.00021917,2]
[372419639,1752637844695,-210.074091,0.00021917,2]
[372419641,1752637844705,-151.0,0.00021917,2]
[372419643,1752637844714,-460.0,0.00021917,2]
[372419645,1752637844724,-210.074091,0.00021917,2]
[372419647,1752637844733,-210.074091,0.00021917,2]
[372419649,1752637844743,-210.074091,0.00021917,2]
[372419651,1752637844752,-210.074091,0.00021917,2]
[372419653,1752637844762,-210.074091,0.00021917,2]
[372419655,1752637844772,-460.0,0.00021917,2]
[372419657,1752637844781,-590.45,0.00021917,2]
[372419659,1752637844791,-590.45,0.00021917,2]
[372419661,1752637844801,-151.0,0.00021917,2]
[372419663,1752637844811,-151.0,0.00021917,2]
[372419665,1752637844820,-460.0,0.00021917,2]
[372419667,1752637844830,-460.0,0.00021917,2]
[372419669,1752637844840,-151.0,0.00021917,2]
[372419671,1752637844851,-151.0,0.00021917,2]
[372419673,1752637844860,-151.0,0.00021917,2]
[372419675,1752637844870,-151.0,0.00021917,2]
[372419677,1752637844879,-156.293986,0.00021917,2]
[372419679,1752637844889,-460.0,0.00021917,2]
[372419681,1752637844898,-460.0,0.00021917,2]
[372419683,1752637844907,-460.0,0.00021917,2]
[372419685,1752637844917,-151.0,0.00021917,2]
[372419687,1752637844926,-500.0,0.00021917,2]
[372419689,1752637844937,-500.0,0.00021917,2]
[372419691,1752637844946,-151.781455,0.00021917,2]
[372419693,1752637844955,-500.0,0.00021917,2]
[372419695,1752637844965,-951.43,0.00021917,2]
[372419697,1752637844975,-151.0,0.00021917,2]
[372419699,1752637844985,-151.0,0.00021917,2]
[372419701,1752637844996,-153.660606,0.00021917,2]
[372419703,1752637845006,-460.0,0.00021917,2]
[372419705,1752637845016,-503.53,0.00021917,2]
[372419707,1752637845025,-151.0,0.00021917,2]
[372419709,1752637845035,-152.128453,0.00021917,2]
[372419711,1752637845045,-460.0,0.00021917,2]
[372419713,1752637845055,-460.0,0.00021917,2]
[372419716,1752637845065,-460.0,0.00021917,2]
[372419718,1752637845075,-460.0,0.00021917,2]
[372419720,1752637845085,-460.0,0.00021917,2]
[372419722,1752637845094,-500.0,0.00021917,2]
[372419724,1752637845104,-491.53818594,0.00021917,2]
[372419726,1752637845113,-460.0,0.00021917,2]
[372419728,1752637845122,-460.0,0.00021917,2]
[372419729,1752637845131,-460.0,0.00021917,2]
[372419730,1752637845141,-151.0,0.00021917,2]
[372419731,1752637845151,-151.0,0.00021917,2]
[372419732,1752637845160,-151.0,0.00021917,2]
[372419733,1752637845169,-151.0,0.00021917,2]
[372419734,1752637845179,-355.17137964,0.00021917,2]
[372419735,1752637845189,-460.0,0.00021917,2]
[372419736,1752637845198,-460.0,0.00021917,2]
[372419737,1752637845207,-460.0,0.00021917,2]
[372419739,1752637845217,-460.0,0.00021917,2]
[372419740,1752637845227,-392.96775433,0.00021917,2]
[372419742,1752637845236,-460.0,0.00021917,2]
[372419744,1752637845245,-434.21477913,0.00021917,2]
[372419746,1752637845255,-151.0,0.00021917,2]
[372419748,1752637845265,-151.0,0.00021917,2]
[372419750,1752637845274,-460.0,0.00021917,2]
[372419752,1752637845283,-151.0,0.00021917,2]
[372419754,1752637845293,-155.316,0.00021917,2]
[372419756,1752637845303,-151.0,0.00021917,2]
[372419759,1752637845313,-209.148344,0.00021917,2]
[372419761,1752637845323,-460.0,0.00021917,2]
[372419763,1752637845333,-462.90354761,0.00021917,2]
[372419765,1752637845342,-465.61578846,0.00021917,2]
[372419767,1752637845352,-735.31,0.00021917,2]
[372419769,1752637845362,-460.0,0.00021917,2]
[372419771,1752637845372,-500.0,0.00021917,2]
[372419807,1752637845688,-460.0,0.00021917,2]
[372419812,1752637845755,-595.79240012,0.00021917,2]
[372419814,1752637845766,-460.0,0.00021917,2]
[372419816,1752637845776,-343.03299485,0.00021917,2]
[372419818,1752637845785,-151.0,0.00021917,2]
[372419820,1752637845795,-151.0,0.00021917,2]
[372419822,1752637845805,-460.0,0.00021917,2]
[372419824,1752637845815,-460.0,0.00021917,2]
[372419826,1752637845825,-460.0,0.00021917,2]
[372419828,1752637845834,-151.0,0.00021917,2]
[372419830,1752637845844,-173.219293,0.00021917,2]
[372419832,1752637845853,-392.68090092,0.00021917,2]
[372419834,1752637845863,-460.0,0.00021917,2]
[372419836,1752637845872,-461.85660588,0.00021917,2]
[372419838,1752637845882,-460.0,0.00021917,2]
[372419840,1752637845891,-460.0,0.00021917,2]
[372419842,1752637845901,-460.0,0.00021917,2]
[372419844,1752637845911,-998.52,0.00021917,2]
[372419846,1752637845920,-1000.0,0.00021917,2]
[372419848,1752637845929,-460.0,0.00021917,2]
[372419850,1752637845938,-226.71784456,0.00021917,2]
[372419852,1752637845948,-460.0,0.00021917,2]
[372419854,1752637845957,-460.0,0.00021917,2]
[372419856,1752637845967,-460.0,0.00021917,2]
[372419858,1752637845976,-460.0,0.00021917,2]
[372419860,1752637845986,-595.24,0.00021917,2]
[372419862,1752637845997,-459.60681306,0.00021917,2]
[372419864,1752637846008,-544.63692221,0.00021917,2]
[372419866,1752637846017,-151.0,0.00021917,2]
[372419868,1752637846027,-155.461104,0.00021917,2]
[372419870,1752637846036,-1564.3,0.00021917,2]
[372419872,1752637846046,-460.0,0.00021917,2]
[372419874,1752637846055,-340.0,0.00021917,2]
[372419876,1752637846066,-461.80612802,0.00021917,2]
[372419878,1752637846077,-502.28,0.00021917,2]
[372419880,1752637846087,-151.0,0.00021917,2]
[372419882,1752637846097,-151.0,0.00021917,2]
[372419884,1752637846107,-460.0,0.00021917,2]
[372419886,1752637846116,-460.0,0.00021917,2]
[372419888,1752637846126,-460.0,0.00021917,2]
[372419890,1752637846135,-460.0,0.00021917,2]
[372419892,1752637846145,-460.0,0.00021917,2]
[372419894,1752637846154,-151.0,0.00021917,2]
[372419896,1752637846164,-151.0,0.00021917,2]
[372419898,1752637846173,-151.0,0.00021917,2]
[372419900,1752637846183,-151.0,0.00021917,2]
[372419902,1752637846192,-151.0,0.00021917,2]
[372419904,1752637846203,-460.0,0.00021917,2]
[372419906,1752637846212,-151.0,0.00021917,2]
[372419908,1752637846221,-460.0,0.00021917,2]
[372419910,1752637846231,-151.0,0.00021917,2]
[372419912,1752637846240,-151.0,0.00021917,2]
[372419914,1752637846250,-151.0,0.00021917,2]
[372419916,1752637846259,-151.0,0.00021917,2]
[372419919,1752637846269,-203.53075602,0.00021917,2]
[372419921,1752637846279,-460.0,0.00021917,2]
[372419923,1752637846290,-460.0,0.00021917,2]
[372419925,1752637846299,-467.14804141,0.00021917,2]
[372419927,1752637846309,-460.0,0.00021917,2]
[372419929,1752637846318,-592.93,0.00021917,2]
[372419931,1752637846328,-604.27,0.00021917,2]
[372419932,1752637846338,-182.940037,0.00021917,2]
[372419934,1752637846348,-860.46,0.00021917,2]
[372419937,1752637846358,-460.0,0.00021917,2]
[372419939,1752637846368,-1021.44,0.00021917,2]
[372419941,1752637846378,-1272.31,0.00021917,2]
[372419943,1752637846388,-460.0,0.00021917,2]
[372419945,1752637846398,-586.10509529,0.00021917,2]
[372419947,1752637846407,-460.0,0.00021917,2]
[372419949,1752637846418,-460.0,0.00021917,2]
[372419951,1752637846427,-461.76604191,0.00021917,2]
[372419953,1752637846439,-460.0,0.00021917,2]
[372419955,1752637846448,-460.0,0.00021917,2]
[372419957,1752637846458,-462.09852347,0.00021917,2]
[372419959,1752637846468,-464.02800147,0.00021917,2]
[372419961,1752637846477,-151.0,0.00021917,2]
[372419963,1752637846486,-220.904282,0.00021917,2]
[372419965,1752637846496,-888.55,0.00021917,2]
[372419967,1752637846505,-460.0,0.00021917,2]
[372419969,1752637846515,-460.0,0.00021917,2]
[372419971,1752637846525,-460.0,0.00021917,2]
[372419973,1752637846535,-460.0,0.00021917,2]
[372419975,1752637846544,-460.0,0.00021917,2]
[372419977,1752637846555,-460.0,0.00021917,2]
[372419979,1752637846564,-460.0,0.00021917,2]
[372419981,1752637846574,-460.0,0.00021917,2]
[372419983,1752637846583,-460.0,0.00021917,2]
[372419985,1752637846592,-460.0,0.00021917,2]
[372419987,1752637846602,-460.0,0.00021917,2]
[372419989,1752637846611,-460.0,0.00021917,2]
[372419991,1752637846621,-460.0,0.00021917,2]
[372419993,1752637846631,-613.2,0.00021917,2]
[372419995,1752637846640,-460.0,0.00021917,2]
[372419997,1752637846650,-460.0,0.00021917,2]
[372419999,1752637846659,-331.86082138,0.00021917,2]
[372420001,1752637846669,-461.08970736,0.00021917,2]
[372420003,1752637846678,-1046.9,0.00021917,2]
[372420005,1752637846688,-460.0,0.00021917,2]
[372420007,1752637846698,-460.0,0.00021917,2]
[372420009,1752637846708,-500.0,0.00021917,2]
[372420011,1752637846717,-500.0,0.00021917,2]
[372420013,1752637846727,-460.0,0.00021917,2]
[372420015,1752637846737,-500.0,0.00021917,2]
[372420017,1752637846746,-500.0,0.00021917,2]
[372420019,1752637846756,-500.0,0.00021917,2]
[372420021,1752637846766,-500.0,0.00021917,2]
[372420023,1752637846776,-500.0,0.00021917,2]
[372420026,1752637846785,-500.0,0.00021917,2]
[372420028,1752637846795,-151.0,0.00021917,2]
[372420030,1752637846804,-500.0,0.00021917,2]
[372420032,1752637846814,-151.0,0.00021917,2]
[372420034,1752637846824,-500.0,0.00021917,2]
[372420036,1752637846835,-151.0,0.00021917,2]
[372420038,1752637846845,-500.0,0.00021917,2]
[372420040,1752637846857,-157.80666,0.00021917,2]
[372420042,1752637846868,-460.0,0.00021917,2]
[372420044,1752637846878,-460.0,0.00021917,2]
[372420046,1752637846887,-460.0,0.00021917,2]
[372420048,1752637846896,-460.0,0.00021917,2]
[372420050,1752637846907,-835.68,0.00021917,2]
[372420051,1752637846917,-460.0,0.00021917,2]
[372420054,1752637846927,-460.0,0.00021917,2]
[372420056,1752637846937,-460.0,0.00021917,2]
[372420057,1752637846947,-460.0,0.00021917,2]
[372420060,1752637846956,-460.0,0.00021917,2]
[372420062,1752637846967,-460.0,0.00021917,2]
[372420064,1752637846976,-863.07,0.00021917,2]
[372420066,1752637846986,-460.0,0.00021917,2]
[372420068,1752637846995,-798.63,0.00021917,2]
[372420069,1752637847007,-460.0,0.00021917,2]
[372420072,1752637847018,-460.0,0.00021917,2]
[372420073,1752637847028,-662.59,0.00021917,5]
[372420076,1752637847039,-460.0,0.00021917,2]
[372420078,1752637847049,-584.09,0.00021917,2]
[372420080,1752637847059,-460.0,0.00021917,2]
[372420082,1752637847069,-460.0,0.00021917,2]
[372420084,1752637847079,-460.0,0.00021917,2]
[372420086,1752637847089,-460.0,0.00021917,2]
[372420088,1752637847099,-174.826876,0.00021917,2]
[372420090,1752637847108,-174.826876,0.00021917,2]
[372420092,1752637847117,-174.826876,0.00021917,2]
[372420094,1752637847126,-460.0,0.00021917,2]
[372420096,1752637847135,-174.826876,0.00021917,2]
[372420098,1752637847144,-460.0,0.00021917,2]
[372420100,1752637847153,-174.826876,0.00021917,2]
[372420102,1752637847162,-504.53,0.00021917,2]
[372420103,1752637847172,-460.0,0.00021917,2]
[372420105,1752637847181,-618.61,0.00021917,2]
[372420108,1752637847195,-151.0,0.00021917,2]
[372420110,1752637847205,-151.0,0.00021917,2]
[372420111,1752637847214,-174.826876,0.00021917,2]
[372420113,1752637847223,-151.0,0.00021917,2]
[372420115,1752637847232,-174.826876,0.00021917,2]
[372420117,1752637847241,-151.0,0.00021917,2]
[372420119,1752637847250,-174.826876,0.00021917,2]
[372420121,1752637847259,-174.826876,0.00021917,2]
[372420123,1752637847269,-151.0,0.00021917,2]
[372420125,1752637847279,-174.826876,0.00021917,2]
[372420127,1752637847288,-151.0,0.00021917,2]
[372420129,1752637847298,-644.67,0.00021917,2]
[372420131,1752637847307,-460.0,0.00021917,2]
[372420133,1752637847317,-460.0,0.00021917,2]
[372420135,1752637847326,-151.0,0.00021917,2]
[372420137,1752637847336,-583.69,0.00021917,2]
[372420139,1752637847345,-151.0,0.00021917,2]
[372420141,1752637847355,-151.0,0.00021917,2]
[372420143,1752637847364,-151.0,0.00021917,2]
[372420146,1752637847374,-157.69309,0.00021917,2]
[372420147,1752637847383,-151.0,0.00021917,2]
[372420150,1752637847393,-154.988277,0.00021917,2]
[372420152,1752637847403,-460.0,0.00021917,2]
[372420154,1752637847413,-460.0,0.00021917,2]
[372420156,1752637847422,-460.0,0.00021917,2]
[372420158,1752637847432,-1239.18,0.00021917,2]
[372420159,1752637847442,-1144.86,0.00021917,2]
[372420162,1752637847452,-624.2,0.00021917,2]
[372420164,1752637847461,-460.0,0.00021917,2]
[372420165,1752637847471,-460.0,0.00021917,2]
[372420167,1752637847481,-460.0,0.00021917,2]
[372420170,1752637847491,-572.61,0.00021917,2]
[372420171,1752637847501,-705.73,0.00021917,2]
[372420172,1752637847510,-1449.21,0.00021917,2]
[372420173,1752637847520,-460.0,0.00021917,2]
[372420174,1752637847529,-151.0,0.00021917,2]
[372420175,1752637847539,-460.0,0.00021917,2]
[372420176,1752637847549,-460.0,0.00021917,2]
[372420177,1752637847558,-151.0,0.00021917,2]
[372420178,1752637847568,-151.0,0.00021917,2]
[372420179,1752637847578,-151.0,0.00021917,2]
[372420181,1752637847587,-151.0,0.00021917,2]
[372420183,1752637847597,-151.0,0.00021917,2]
[372420185,1752637847607,-1339.52,0.00021917,2]
[372420187,1752637847616,-151.0,0.00021917,2]
[372420189,1752637847626,-460.0,0.00021917,2]
[372420191,1752637847635,-151.0,0.00021917,2]
[372420193,1752637847645,-460.0,0.00021917,2]
[372420195,1752637847655,-254.122982,0.00021917,2]
[372420197,1752637847664,-1039.11,0.00021917,2]
[372420199,1752637847673,-460.0,0.00021917,2]
[372420202,1752637847683,-955.24,0.00021917,2]
[372420204,1752637847693,-617.29,0.00021917,2]
[372420206,1752637847702,-576.48,0.00021917,2]
[372420208,1752637847712,-576.48,0.00021917,2]
[372420209,1752637847721,-576.48,0.00021917,2]
[372420212,1752637847730,-460.0,0.00021917,2]
[372420214,1752637847740,-151.0,0.00021917,2]
[372420216,1752637847749,-461.20939473,0.00021917,2]
[372420218,1752637847758,-576.48,0.00021917,2]
[372420220,1752637847767,-576.48,0.00021917,2]
[372420222,1752637847777,-151.0,0.00021917,2]
[372420224,1752637847786,-576.48,0.00021917,2]
[372420226,1752637847795,-151.0,0.00021917,2]
[372420228,1752637847805,-576.48,0.00021917,2]
[372420230,1752637847814,-151.0,0.00021917,2]
[372420231,1752637847823,-576.48,0.00021917,2]
[372420234,1752637847834,-152.004098,0.00021917,2]
[372420236,1752637847844,-576.48,0.00021917,2]
[372420238,1752637847855,-263.94605078,0.00021917,2]
[372420239,1752637847863,-576.48,0.00021917,2]
[372420242,1752637847873,-576.48,0.00021917,2]
[372420244,1752637847884,-151.266819,0.00021917,2]
[372420246,1752637847895,-151.266819,0.00021917,2]
[372420248,1752637847905,-151.266819,0.00021917,2]
[372420250,1752637847915,-151.266819,0.00021917,2]
[372420252,1752637847925,-460.0,0.00021917,2]
[372420253,1752637847934,-460.0,0.00021917,2]
[372420255,1752637847944,-151.266819,0.00021917,2]
[372420257,1752637847953,-151.266819,0.00021917,2]
[372420259,1752637847963,-500.80628056,0.00021917,2]
[372420262,1752637847972,-151.266819,0.00021917,2]
[372420264,1752637847982,-151.266819,0.00021917,2]
[372420266,1752637847991,-151.266819,0.00021917,2]
[372420268,1752637848002,-151.266819,0.00021917,2]
[372420269,1752637848015,-151.266819,0.00021917,2]
[372420271,1752637848025,-151.26681,0.00021917,2]
[372420273,1752637848035,-463.88389084,0.00021917,2]
[372420275,1752637848044,-477.92,0.00021917,2]
[372420277,1752637848054,-605.05,0.00021917,2]
[372420279,1752637848063,-460.0,0.00021917,2]
[372420281,1752637848072,-460.0,0.00021917,2]
[372420283,1752637848081,-460.0,0.00021917,2]
[372420285,1752637848091,-2171.91,0.00021917,2]
[372420287,1752637848101,-1167.06,0.00021917,2]
[372420301,1752637848225,-460.0,0.00021917,2]
[372420303,1752637848235,-460.0,0.00021917,2]
[372420305,1752637848245,-460.54169721,0.00021917,2]
[372420308,1752637848255,-463.27517396,0.00021917,2]
[372420309,1752637848264,-561.52,0.00021917,2]
[372420311,1752637848274,-460.0,0.00021917,2]
[372420313,1752637848283,-460.0,0.00021917,2]
[372420315,1752637848293,-477.8,0.00021917,2]
[372420317,1752637848303,-460.0,0.00021917,2]
[372420319,1752637848320,-903.62,0.00021917,2]
[372420321,1752637848330,-460.0,0.00021917,2]
[372420324,1752637848339,-460.0,0.00021917,2]
[372420325,1752637848349,-460.0,0.00021917,2]
[372420327,1752637848367,-766.71,0.00021917,2]
[372420329,1752637848377,-460.0,0.00021917,2]
[372420331,1752637848387,-460.0,0.00021917,2]
[372420334,1752637848396,-460.0,0.00021917,2]
[372420336,1752637848406,-460.0,0.00021917,2]
[372420337,1752637848416,-460.0,0.00021917,2]
[372420339,1752637848425,-881.91,0.00021917,2]
[372420341,1752637848435,-460.0,0.00021917,2]
[372420344,1752637848445,-461.27931061,0.00021917,2]
[372420345,1752637848455,-460.0,0.00021917,2]
[372420347,1752637848464,-460.0,0.00021917,2]
[372420349,1752637848475,-460.0,0.00021917,2]
[372420352,1752637848484,-637.73,0.00021917,2]
[372420353,1752637848494,-460.0,0.00021917,2]
[372420355,1752637848504,-460.0,0.00021917,2]
[372420357,1752637848514,-850.21,0.00021917,2]
[372420359,1752637848524,-460.0,0.00021917,2]
[372420361,1752637848533,-576.03,0.00021917,2]
[372420363,1752637848544,-460.0,0.00021917,2]
[372420365,1752637848554,-460.0,0.00021917,2]
[372420367,1752637848564,-303.94379622,0.00021917,2]
[372420369,1752637848574,-472.55,0.00021917,2]
[372420371,1752637848583,-461.17897847,0.00021917,2]
[372420374,1752637848593,-460.0,0.00021917,2]
[372420376,1752637848603,-460.0,0.00021917,2]
[372420377,1752637848612,-460.0,0.00021917,2]
[372420379,1752637848621,-460.0,0.00021917,2]
[372420381,1752637848631,-593.7,0.00021917,2]
[372420383,1752637848641,-460.0,0.00021917,2]
[372420385,1752637848651,-217.440783,0.00021917,2]
[372420388,1752637848661,-460.0,0.00021917,2]
[372420389,1752637848671,-571.38,0.00021917,2]
[372420392,1752637848680,-500.0,0.00021917,2]
[372420393,1752637848691,-500.0,0.00021917,2]
[372420394,1752637848701,-500.0,0.00021917,2]
[372420395,1752637848710,-500.0,0.00021917,2]
[372420396,1752637848720,-500.0,0.00021917,2]
[372420397,1752637848730,-500.0,0.00021917,2]
[372420398,1752637848739,-500.0,0.00021917,2]
[372420399,1752637848749,-500.0,0.00021917,2]
[372420400,1752637848758,-480.0,0.00021917,2]
[372420402,1752637848768,-460.0,0.00021917,2]
[372420403,1752637848777,-460.0,0.00021917,2]
[372420405,1752637848787,-750.46,0.00021917,2]
[372420407,1752637848797,-460.0,0.00021917,2]
[372420409,1752637848806,-460.0,0.00021917,2]
[372420411,1752637848815,-864.51,0.00021917,2]
[372420413,1752637848825,-487.67,0.00021917,2]
[372420415,1752637848834,-738.12,0.00021917,2]
[372420417,1752637848843,-461.03171597,0.00021917,2]
[372420419,1752637848853,-460.0,0.00021917,2]
[372420421,1752637848862,-1377.95,0.00021917,2]
[372420423,1752637848871,-461.43735828,0.00021917,2]
[372420425,1752637848881,-460.0,0.00021917,2]
[372420427,1752637848890,-460.0,0.00021917,2]
[372420429,1752637848900,-460.0,0.00021917,2]
[372420431,1752637848910,-460.0,0.00021917,2]
[372420433,1752637848920,-460.0,0.00021917,2]
[372420435,1752637848930,-460.0,0.00021917,2]
[372420437,1752637848940,-460.0,0.00021917,2]
[372420439,1752637848950,-460.0,0.00021917,2]
[372420441,1752637848960,-460.0,0.00021917,2]
[372420443,1752637848970,-467.02480591,0.00021917,2]
[372420445,1752637848979,-483.27,0.00021917,2]
[372420447,1752637848989,-413.2960668,0.00021917,2]
[372420449,1752637848999,-460.0,0.00021917,2]
[372420451,1752637849009,-256.34481136,0.00021917,2]
[372420453,1752637849022,-609.48,0.00021917,2]
[372420455,1752637849031,-460.0,0.00021917,2]
[372420457,1752637849041,-460.0,0.00021917,2]
[372420459,1752637849052,-460.0,0.00021917,2]
[372420461,1752637849062,-460.0,0.00021917,2]
[372420463,1752637849071,-523.57861449,0.00021917,2]
[372420465,1752637849081,-460.0,0.00021917,2]
[372420467,1752637849091,-460.0,0.00021917,2]
[372420469,1752637849101,-460.0,0.00021917,2]
[372420471,1752637849111,-1217.14,0.00021917,2]
[372420473,1752637849120,-460.0,0.00021917,2]
[372420475,1752637849129,-1416.1,0.00021917,2]
[372420477,1752637849139,-460.0,0.00021917,2]
[372420479,1752637849149,-550.67709717,0.00021917,2]
[372420481,1752637849159,-460.0,0.00021917,2]
[372420483,1752637849168,-630.62,0.00021917,2]
[372420485,1752637849178,-460.0,0.00021917,2]
[372420487,1752637849188,-460.0,0.00021917,2]
[372420489,1752637849198,-252.14489683,0.00021917,2]
[372420491,1752637849208,-460.0,0.00021917,2]
[372420493,1752637849218,-460.0,0.00021917,2]
[372420495,1752637849227,-482.04,0.00021917,2]
[372420497,1752637849237,-460.0,0.00021917,2]
[372420499,1752637849247,-589.37,0.00021917,2]
[372420501,1752637849256,-462.37089985,0.00021917,2]
[372420503,1752637849265,-466.41348701,0.00021917,2]
[372420505,1752637849274,-460.0,0.00021917,2]
[372420507,1752637849284,-460.0,0.00021917,2]
[372420509,1752637849293,-1663.33,0.00021917,2]
[372420511,1752637849304,-520.85,0.00021917,2]
[372420513,1752637849313,-538.03,0.00021917,2]
[372420515,1752637849322,-460.0,0.00021917,2]
[372420517,1752637849332,-665.49,0.00021917,2]
[372420519,1752637849341,-574.55724694,0.00021917,2]
[372420521,1752637849350,-460.0,0.00021917,2]
[372420523,1752637849359,-460.0,0.00021917,2]
[372420525,1752637849368,-460.0,0.00021917,2]
[372420527,1752637849377,-460.0,0.00021917,2]
[372420529,1752637849387,-460.0,0.00021917,2]
[372420531,1752637849396,-460.0,0.00021917,2]
[372420532,1752637849406,-460.0,0.00021917,2]
[372420534,1752637849415,-819.15,0.00021917,2]
[372420536,1752637849424,-460.0,0.00021917,2]
[372420539,1752637849435,-460.0,0.00021917,2]
[372420540,1752637849444,-460.0,0.00021917,2]
[372420542,1752637849453,-549.67,0.00021917,2]
[372420544,1752637849463,-460.75707854,0.00021917,2]
[372420546,1752637849472,-494.66986843,0.00021917,2]
[372420549,1752637849482,-461.43019228,0.00021917,2]
[372420551,1752637849492,-460.0,0.00021917,2]
[372420552,1752637849502,-567.2,0.00021917,2]
[372420555,1752637849511,-460.0,0.00021917,2]
[372420556,1752637849520,-610.7,0.00021917,2]
[372420558,1752637849530,-460.0,0.00021917,2]
[372420561,1752637849540,-460.0,0.00021917,2]
[372420563,1752637849549,-610.7,0.00021917,2]
[372420564,1752637849559,-460.0,0.00021917,2]
[372420566,1752637849568,-610.7,0.00021917,2]
[372420568,1752637849577,-635.3,0.00021917,2]
[372420570,1752637849586,-610.7,0.00021917,2]
[372420572,1752637849595,-610.7,0.00021917,2]
[372420573,1752637849604,-610.7,0.00021917,2]
[372420574,1752637849613,-610.7,0.00021917,2]
[372420575,1752637849622,-610.7,0.00021917,2]
[372420576,1752637849631,-583.31,0.00021917,2]
[372420577,1752637849639,-610.7,0.00021917,2]
[372420578,1752637849646,-460.0,0.00021917,2]